fUSD/lending_fUSD_20240327
["ID","MTS","AMOUNT","RATE_DAILY","PERIOD"]
[320795299,1711561851162,-201.22,0.000525,120]
[320795300,1711561851171,-201.22,0.000525,120]
[320795301,1711561851182,-201.22,0.000525,120]
[320795302,1711561851191,-201.22,0.000525,120]
[320795303,1711561851201,-201.22,0.000525,120]
[320795304,1711561851210,-201.22,0.000525,120]
[320795305,1711561851219,-201.22,0.000525,120]
[320795306,1711561851228,-201.22,0.000525,120]
[320795307,1711561851237,-201.22,0.000525,120]
[320795308,1711561851246,-201.22,0.000525,120]
[320795309,1711561851257,-201.22,0.000525,120]
[320795310,1711561851266,-201.22,0.000525,120]
[320795311,1711561851275,-201.22,0.000525,120]
[320795312,1711561851284,-201.22,0.000525,120]
[320795313,1711561851294,-201.22,0.000525,120]
[320795314,1711561851303,-201.22,0.000525,120]
[320795315,1711561851314,-201.22,0.000525,120]
[320795316,1711561851323,-201.22,0.000525,120]
[320795317,1711561851333,-201.22,0.000525,120]
[320795318,1711561851342,-201.22,0.000525,120]
[320795319,1711561851351,-201.22,0.000525,120]
[320795320,1711561851360,-201.22,0.000525,120]
[320795321,1711561851369,-201.22,0.000525,120]
[320795322,1711561851379,-201.22,0.000525,120]
[320795323,1711561851388,-201.22,0.000525,120]
[320795324,1711561851397,-201.22,0.000525,120]
[320795325,1711561851405,-201.22,0.000525,120]
[320795326,1711561851414,-201.22,0.000525,120]
[320795327,1711561851423,-201.22,0.000525,120]
[320795328,1711561851433,-201.22,0.000525,120]
[320795329,1711561851442,-201.22,0.000525,120]
[320795330,1711561851450,-201.22,0.000525,120]
[320795331,1711561851459,-201.22,0.000525,120]
[320795332,1711561851469,-201.22,0.000525,120]
[320795333,1711561851478,-201.22,0.000525,120]
[320795334,1711561851487,-201.22,0.000525,120]
[320795335,1711561851496,-201.22,0.000525,120]
[320795336,1711561851505,-201.22,0.000525,120]
[320795337,1711561851514,-201.22,0.000525,120]
[320795338,1711561851523,-201.22,0.000525,120]
[320795339,1711561851533,-201.22,0.000525,120]
[320795340,1711561851542,-201.22,0.000525,120]
[320795341,1711561851550,-201.22,0.000525,120]
[320795342,1711561851562,-412.62,0.00052593,120]
[320795343,1711561851571,-500.0,0.00052601,90]
[320795344,1711561851580,-500.0,0.00052601,90]
[320795345,1711561851589,-2000.0,0.00052601,30]
[320795346,1711561851598,-631.34,0.00052602,60]
[320795347,1711561851608,-1513.74,0.00052602,120]
[320795348,1711561851616,-558.0,0.00052603,120]
[320795349,1711561851625,-537.0,0.00052603,120]
[320795350,1711561851635,-522.0,0.00052603,120]
[320795351,1711561851644,-968.0,0.00052696,120]
[320795352,1711561851653,-150.0,0.000527,11]
[320795353,1711561851662,-154.13724489,0.00052706,60]
[320795354,1711561851671,-150.0,0.0005273,30]
[320795355,1711561851680,-455.80156122,0.00052797,2]
[320795356,1711561851689,-626.0726158,0.00052797,50]
[320795357,1711561851698,-2155.6451692,0.00052797,120]
[320795358,1711561851707,-8635.99586065,0.00052797,2]
[320795359,1711561851716,-7703.935193,0.00052797,30]
[320795360,1711561851725,-174.53036594,0.000528,2]
[320795361,1711561851734,-150.0,0.000528,11]
[320795362,1711561851743,-150.0,0.000528,11]
[320795363,1711561851752,-150.0,0.000528,11]
[320795364,1711561851761,-150.0,0.000528,11]
[320795365,1711561851770,-153.33171327,0.00052822,60]
[320795366,1711561851779,-150.19866873,0.00052825,55]
[320795367,1711561851788,-207.0,0.0005283,15]
[320795368,1711561851797,-207.0,0.0005284,15]
[320795369,1711561851809,-207.0,0.0005285,15]
[320795370,1711561851818,-154.13724489,0.00052856,60]
[320795371,1711561851828,-302.0,0.00052863,4]
[320795372,1711561851838,-1474.0,0.00052864,15]
[320795373,1711561851850,-2435.0,0.00052864,15]
[320795374,1711561851860,-181.0,0.00052864,15]
[320795375,1711561851869,-1474.0,0.00052874,15]
[320795376,1711561851878,-2435.0,0.00052874,15]
[320795377,1711561851887,-181.0,0.00052874,15]
[320795378,1711561851897,-2000.0,0.00052875,30]
[320795379,1711561851906,-558.0,0.00052876,120]
[320795380,1711561851915,-537.0,0.00052876,120]
[320795381,1711561851927,-522.0,0.00052876,120]
[320795382,1711561851936,-1513.74,0.00052876,120]
[320795383,1711561851945,-2319.97,0.00052876,120]
[320795384,1711561851954,-1474.0,0.00052884,15]
[320795385,1711561851964,-2435.0,0.00052884,15]
[320795386,1711561851972,-181.0,0.00052884,15]
[320795387,1711561851981,-153.33171327,0.00052887,60]
[320795388,1711561851990,-171.11161571,0.00052891,2]
[320795389,1711561851999,-1351646.14824708,0.00052894,7]
[320795390,1711561852009,-171.11161571,0.00052897,2]
[320795391,1711561852019,-1681618.80873382,0.000529,16]
[320795392,1711561852028,-394.41,0.000529,14]
[320795393,1711561852038,-533.89,0.000529,7]
[320795394,1711561852047,-151.0,0.000529,120]
[320795395,1711561852059,-460.07,0.000529,30]
[320795396,1711561852068,-151.0,0.000529,60]
[320795397,1711561852078,-151.0,0.000529,60]
[320795398,1711561852087,-151.0,0.000529,60]
[320795399,1711561852098,-151.0,0.000529,120]
[320795400,1711561852108,-152.141664,0.000529,120]
[320795401,1711561852118,-151.0,0.000529,120]
[320795402,1711561852128,-151.0,0.000529,30]
[320795403,1711561852139,-151.0,0.000529,30]
[320795404,1711561852149,-151.0,0.000529,120]
[320795405,1711561852159,-151.0,0.000529,120]
[320795406,1711561852171,-151.0,0.000529,120]
[320795407,1711561852182,-151.0,0.000529,120]
[320795408,1711561852191,-151.0,0.000529,120]
[320795409,1711561852201,-168.606571,0.000529,120]
[320795410,1711561852212,-151.0,0.000529,120]
[320795411,1711561852223,-151.0,0.000529,120]
[320795412,1711561852233,-151.0,0.000529,120]
[320795413,1711561852244,-151.0,0.000529,120]
[320795414,1711561852255,-204.288628,0.000529,120]
[320795415,1711561852266,-204.288628,0.000529,120]
[320795416,1711561852276,-191.520487,0.000529,120]
[320795417,1711561852284,-151.0,0.000529,120]
[320795418,1711561852294,-191.520487,0.000529,120]
[320795419,1711561852306,-250.635261,0.000529,120]
[320795420,1711561852317,-250.635261,0.000529,120]
[320795421,1711561852326,-151.576563,0.000529,120]
[320795422,1711561852335,-240.242065,0.000529,120]
[320795423,1711561852344,-151.0,0.000529,120]
[320795424,1711561852353,-151.576563,0.000529,120]
[320795425,1711561852362,-240.242065,0.000529,120]
[320795426,1711561852371,-152.152367,0.000529,7]
[320795427,1711561852380,-151.0,0.000529,120]
[320795428,1711561852389,-151.0,0.000529,120]
[320795429,1711561852400,-342.284432,0.000529,120]
[320795430,1711561852411,-342.284432,0.000529,120]
[320795431,1711561852422,-227.95035,0.000529,120]
[320795432,1711561852432,-151.0,0.000529,120]
[320795433,1711561852442,-302.296389,0.000529,120]
[320795434,1711561852454,-302.296389,0.000529,120]
[320795435,1711561852465,-151.0,0.000529,120]
[320795436,1711561852475,-151.0,0.000529,120]
[320795437,1711561852485,-151.0,0.000529,120]
[320795438,1711561852497,-151.0,0.000529,120]
[320795439,1711561852507,-151.0,0.000529,120]
[320795440,1711561852519,-151.0,0.000529,120]
[320795441,1711561852529,-151.0,0.000529,120]
[320795442,1711561852539,-151.0,0.000529,120]
[320795443,1711561852551,-151.0,0.000529,120]
[320795444,1711561852562,-151.0,0.000529,120]
[320795445,1711561852571,-151.0,0.000529,120]
[320795446,1711561852581,-151.0,0.000529,120]
[320795447,1711561852591,-151.0,0.000529,120]
[320795448,1711561852601,-151.0,0.000529,120]
[320795449,1711561852610,-151.0,0.000529,120]
[320795450,1711561852620,-151.0,0.000529,120]
[320795451,1711561852629,-151.0,0.000529,120]
[320795452,1711561852638,-151.0,0.000529,120]
[320795453,1711561852647,-151.0,0.000529,30]
[320795454,1711561852657,-479.754063,0.000529,120]
[320795455,1711561852666,-151.0,0.000529,120]
[320795456,1711561852676,-479.754063,0.000529,120]
[320795457,1711561852685,-151.0,0.000529,120]
[320795458,1711561852696,-167.203434,0.000529,7]
[320795459,1711561852705,-151.0,0.000529,120]
[320795460,1711561852714,-151.0,0.000529,120]
[320795461,1711561852723,-151.0,0.000529,120]
[320795462,1711561852733,-151.0,0.000529,7]
[320795463,1711561852744,-151.968571,0.000529,120]
[320795464,1711561852754,-151.0,0.000529,120]
[320795465,1711561852764,-151.0,0.000529,120]
[320795466,1711561852773,-151.0,0.000529,120]
[320795467,1711561852783,-151.0,0.000529,120]
[320795468,1711561852793,-151.0,0.000529,120]
[320795469,1711561852804,-151.0,0.000529,120]
[320795470,1711561852814,-151.0,0.000529,120]
[320795471,1711561852825,-151.0,0.000529,14]
[320795472,1711561852835,-151.0,0.000529,120]
[320795473,1711561852848,-228.979437,0.000529,120]
[320795474,1711561852858,-158.036351,0.000529,120]
[320795475,1711561852869,-158.036351,0.000529,120]
[320795476,1711561852880,-151.0,0.000529,120]
[320795477,1711561852891,-151.0,0.000529,120]
[320795478,1711561852902,-318.86786748,0.00052914,60]
[320795479,1711561852913,-156819.16939554,0.00052916,10]
[320795480,1711561852923,-150.83655512,0.00052939,10]
[320795481,1711561852933,-160.04049193,0.00052939,10]
[320795482,1711561852944,-150.50617537,0.00052939,60]
[320795483,1711561852954,-318.86786748,0.00052961,60]
[320795484,1711561852964,-150.0,0.00052962,60]
[320795485,1711561852973,-155.71933176,0.00052963,10]
[320795486,1711561852982,-155.04492602,0.00052969,10]
[320795487,1711561852992,-152.0,0.00052982,3]
[320795488,1711561853001,-108632.55,0.00053,30]
[320795489,1711561853011,-9854.57144886,0.00053,120]
[320795490,1711561853020,-159.796,0.00053048,120]
[320795491,1711561853030,-159.797,0.00053048,120]
[320795492,1711561853039,-159.797,0.00053048,120]
[320795493,1711561853049,-159.797,0.00053048,120]
[320795494,1711561853061,-159.797,0.00053048,120]
[320795495,1711561853070,-1889.161,0.00053048,120]
[320795496,1711561853079,-1889.162,0.00053048,120]
[320795497,1711561853088,-1889.161,0.00053048,120]
[320795498,1711561853098,-1889.162,0.00053048,120]
[320795499,1711561853108,-1889.161,0.00053048,120]
[320795500,1711561853118,-200.0,0.00053075,30]
[320795501,1711561853127,-9417.89501353,0.00053075,30]
[320795502,1711561853137,-315.3958168,0.00053139,2]
[320795503,1711561853148,-500.0,0.00053149,90]
[320795504,1711561853158,-500.0,0.00053149,90]
[320795505,1711561853167,-2000.0,0.00053149,30]
[320795506,1711561853177,-558.0,0.0005315,120]
[320795507,1711561853187,-537.0,0.0005315,120]
[320795508,1711561853198,-522.0,0.0005315,120]
[320795509,1711561853210,-631.34,0.0005315,60]
[320795510,1711561853223,-1513.74,0.0005315,120]
[320795511,1711561853233,-170.0,0.0005318,73]
[320795512,1711561853244,-158.63652466,0.00053195,60]
[320795513,1711561853260,-150.0,0.000532,11]
[320795514,1711561853270,-626.07261576,0.00053203,51]
[320795515,1711561853281,-150.19866873,0.00053242,56]
[320795516,1711561853291,-150.50617537,0.00053257,60]
[320795517,1711561853301,-460.07,0.000533,30]
[320795518,1711561853312,-150.0,0.000533,11]
[320795519,1711561853322,-150.0,0.000533,11]
[320795520,1711561853331,-150.0,0.000533,11]
[320795521,1711561853341,-150.0,0.000533,11]
[320795522,1711561853351,-460.45713346,0.00053361,14]
[320795523,1711561853360,-318.86786748,0.00053364,60]
[320795524,1711561853368,-154.75091202,0.00053375,60]
[320795525,1711561853378,-155.61103005,0.00053383,60]
[320795526,1711561853388,-394.41,0.000534,14]
[320795527,1711561853398,-154.13724489,0.00053417,60]
[320795528,1711561853406,-2000.0,0.00053423,30]
[320795529,1711561853417,-558.0,0.00053424,120]
[320795530,1711561853426,-537.0,0.00053424,120]
[320795531,1711561853434,-522.0,0.00053424,120]
[320795532,1711561853443,-2000.0,0.00053424,120]
[320795533,1711561853453,-2000.0,0.00053424,120]
[320795534,1711561853463,-2000.0,0.00053424,120]
[320795535,1711561853472,-2000.0,0.00053424,120]
[320795536,1711561853483,-2000.0,0.00053424,120]
[320795537,1711561853492,-2000.0,0.00053424,120]
[320795538,1711561853501,-2000.0,0.00053424,120]
[320795539,1711561853511,-2000.0,0.00053424,120]
[320795540,1711561853521,-2000.0,0.00053424,120]
[320795541,1711561853530,-2000.0,0.00053424,120]
[320795542,1711561853539,-2000.0,0.00053424,120]
[320795543,1711561853549,-2000.0,0.00053424,120]
[320795544,1711561853561,-2000.0,0.00053424,120]
[320795545,1711561853571,-1267.93817187,0.00053424,120]
[320795546,1711561853582,-150.0,0.00053424,30]
[320795547,1711561853591,-1513.74,0.00053424,120]
[320795548,1711561853601,-161.997484,0.00053427,30]
[320795549,1711561853610,-170.48993,0.00053427,30]
[320795550,1711561853619,-150.0,0.00053445,120]
[320795551,1711561853628,-4400.00000099,0.0005347,120]
[320795552,1711561853637,-318.86786748,0.00053487,60]
[320795553,1711561853647,-533.89,0.000535,7]
[320795554,1711561853656,-2100.0,0.000535,30]
[320795555,1711561853666,-1000.0,0.000535,120]
[320795556,1711561853675,-157.09370442,0.00053535,60]
[320795557,1711561853685,-154.13724489,0.00053565,60]
[320795558,1711561853694,-152.22028874,0.00053567,60]
[320795559,1711561853703,-626.07261576,0.00053608,52]
[320795560,1711561853712,-154.13724489,0.00053656,60]
[320795561,1711561853721,-150.19866873,0.0005366,58]
[320795562,1711561853731,-1286.76228,0.0005368,67]
[320795563,1711561853740,-157.09370442,0.00053687,60]
[320795564,1711561853750,-500.0,0.00053697,90]
[320795565,1711561853760,-500.0,0.00053697,90]
[320795566,1711561853769,-2000.0,0.00053697,30]
[320795567,1711561853779,-558.0,0.00053698,120]
[320795568,1711561853789,-537.0,0.00053698,120]
[320795569,1711561853798,-522.0,0.00053698,120]
[320795570,1711561853809,-631.34,0.00053698,60]
[320795571,1711561853818,-1513.74,0.00053698,120]
[320795572,1711561853828,-2319.97,0.00053698,120]
[320795573,1711561853837,-150.0,0.00053699,30]
[320795574,1711561853847,-150.0,0.00053699,30]
[320795575,1711561853858,-150.0,0.00053699,30]
[320795576,1711561853867,-150.0,0.00053699,30]
[320795577,1711561853877,-150.0,0.00053699,30]
[320795578,1711561853887,-150.0,0.00053699,30]
[320795579,1711561853897,-150.0,0.00053699,30]
[320795580,1711561853906,-460.07,0.000537,30]
[320795581,1711561853916,-152.52,0.000537,7]
[320795582,1711561853925,-152.52,0.000537,7]
[320795583,1711561853936,-152.52,0.000537,7]
[320795584,1711561853946,-152.52,0.000537,7]
[320795585,1711561853956,-152.52,0.000537,7]
[320795586,1711561853965,-2146.54,0.000537,7]
[320795587,1711561853974,-2146.54,0.000537,7]
[320795588,1711561853984,-2146.54,0.000537,7]
[320795589,1711561853993,-2146.54,0.000537,7]
[320795590,1711561854002,-2146.54,0.000537,7]
[320795591,1711561854012,-2146.54,0.000537,7]
[320795592,1711561854021,-2146.54,0.000537,7]
[320795593,1711561854030,-2146.54,0.000537,7]
[320795594,1711561854039,-2146.54,0.000537,7]
[320795595,1711561854048,-2146.54,0.000537,7]
[320795596,1711561854058,-2146.54,0.000537,7]
[320795597,1711561854068,-2146.54,0.000537,7]
[320795598,1711561854077,-2146.54,0.000537,7]
[320795599,1711561854086,-2146.54,0.000537,7]
[320795600,1711561854096,-2146.54,0.000537,7]
[320795601,1711561854105,-2146.54,0.000537,7]
[320795602,1711561854114,-2146.54,0.000537,7]
[320795603,1711561854124,-2146.54,0.000537,7]
[320795604,1711561854133,-2146.54,0.000537,7]
[320795605,1711561854143,-2146.54,0.000537,7]
[320795606,1711561854152,-150.0,0.000537,11]
[320795607,1711561854161,-9417.89501353,0.00053711,31]
[320795608,1711561854170,-386.60453288,0.0005375,30]
[320795609,1711561854180,-604.0,0.00053751,7]
[320795610,1711561854189,-150.0,0.000538,11]
[320795611,1711561854199,-150.0,0.000538,11]
[320795612,1711561854208,-150.0,0.000538,11]
[320795613,1711561854217,-150.0,0.000538,11]
[320795614,1711561854226,-165.93371293,0.00053828,120]
[320795615,1711561854235,-155.05030773,0.00053864,60]
[320795616,1711561854245,-4388.45672278,0.00053875,30]
[320795617,1711561854255,-1326.55063252,0.00053881,30]
[320795618,1711561854264,-217.85965091,0.00053882,30]
[320795619,1711561854274,-455.80156122,0.00053883,2]
[320795620,1711561854283,-2155.64516919,0.00053883,120]
[320795621,1711561854294,-8635.99586063,0.00053883,2]
[320795622,1711561854304,-7703.93519299,0.00053883,30]
[320795623,1711561854314,-566.94754011,0.00053887,30]
[320795624,1711561854323,-161.11878669,0.000539,30]
[320795625,1711561854332,-394.41,0.000539,14]
[320795626,1711561854343,-217.85965091,0.00053912,30]
[320795627,1711561854356,-265.3101265,0.00053913,30]
[320795628,1711561854366,-1291.2000281,0.00053914,30]
[320795629,1711561854376,-318.86786748,0.00053914,60]
[320795630,1711561854386,-566.94754011,0.00053915,30]
[320795631,1711561854395,-217.85965091,0.00053915,30]
[320795632,1711561854404,-217.85965091,0.00053917,30]
[320795633,1711561854414,-217.85965091,0.00053918,30]
[320795634,1711561854424,-161.11878669,0.00053919,30]
[320795635,1711561854434,-265.3101265,0.00053924,30]
[320795636,1711561854443,-1291.2000281,0.00053926,30]
[320795637,1711561854453,-150.0,0.00053938,60]
[320795638,1711561854463,-1326.55063252,0.00053941,30]
[320795639,1711561854472,-1291.2000281,0.00053956,30]
[320795640,1711561854482,-1291.2000281,0.0005396,30]
[320795641,1711561854491,-150.0,0.00053962,60]
[320795642,1711561854503,-160.89804975,0.00053962,60]
[320795643,1711561854513,-221.20509768,0.00053962,60]
[320795644,1711561854523,-566.94754011,0.00053964,30]
[320795645,1711561854534,-161.11878669,0.00053965,30]
[320795646,1711561854547,-1474.0,0.0005397,15]
[320795647,1711561854557,-161.11878669,0.0005397,30]
[320795648,1711561854567,-1326.55063252,0.00053971,30]
[320795649,1711561854577,-2000.0,0.00053971,30]
[320795650,1711561854589,-558.0,0.00053972,120]
[320795651,1711561854600,-537.0,0.00053972,120]
[320795652,1711561854610,-522.0,0.00053972,120]
[320795653,1711561854623,-1513.74,0.00053972,120]
[320795654,1711561854634,-162.85775373,0.00053974,3]
[320795655,1711561854644,-566.94754011,0.0005398,30]
[320795656,1711561854654,-1474.0,0.0005398,15]
[320795657,1711561854664,-566.94754011,0.00053984,30]
[320795658,1711561854674,-1326.55063252,0.00053984,30]
[320795659,1711561854684,-150.0,0.00053989,10]
[320795660,1711561854695,-566.94754011,0.0005399,30]
[320795661,1711561854705,-1474.0,0.0005399,15]
[320795662,1711561854715,-10000.0,0.00054,14]
[320795663,1711561854726,-10000.0,0.00054,14]
[320795664,1711561854736,-734.92930057,0.00054,14]
[320795665,1711561854745,-10000.0,0.00054,14]
[320795666,1711561854756,-155.0,0.00054,30]
[320795667,1711561854765,-150.0,0.00054,30]
[320795668,1711561854777,-434.768401,0.00054,55]
[320795669,1711561854787,-616.34007128,0.00054,30]
[320795670,1711561854798,-150.0,0.00054,92]
[320795671,1711561854809,-265.3101265,0.00054005,30]
[320795672,1711561854819,-1286.76227,0.00054007,68]
[320795673,1711561854829,-4388.45672278,0.00054012,30]
[320795674,1711561854841,-161.11878669,0.00054013,30]
[320795675,1711561854855,-626.07261576,0.00054014,52]
[320795676,1711561854865,-4388.45672278,0.00054015,30]
[320795677,1711561854875,-217.85965091,0.00054019,30]
[320795678,1711561854887,-1291.2000281,0.00054019,30]
[320795679,1711561854897,-265.3101265,0.00054023,30]
[320795680,1711561854907,-265.3101265,0.00054026,30]
[320795681,1711561854917,-566.94754011,0.00054031,30]
[320795682,1711561854927,-4388.45672278,0.00054032,30]
[320795683,1711561854938,-577.3633109,0.00054033,2]
[320795684,1711561854948,-8602.1656758,0.00054033,2]
[320795685,1711561854960,-265.3101265,0.00054033,30]
[320795686,1711561854971,-265.3101265,0.00054038,30]
[320795687,1711561854981,-171.11161571,0.0005404,2]
[320795688,1711561854991,-1291.2000281,0.00054042,30]
[320795689,1711561855001,-299000.67507133,0.00054043,30]
[320795690,1711561855011,-72230.34047655,0.00054043,30]
[320795691,1711561855021,-1255.32825733,0.00054043,2]
[320795692,1711561855031,-169.75866639,0.00054043,7]
[320795693,1711561855041,-2000.0,0.00054043,90]
[320795694,1711561855051,-151.0,0.00054043,60]
[320795695,1711561855061,-151.0,0.00054043,60]
[320795696,1711561855071,-151.0,0.00054043,120]
[320795697,1711561855081,-151.0,0.00054043,30]
[320795698,1711561855090,-151.0,0.00054043,30]
[320795699,1711561855100,-151.0,0.00054043,120]
[320795700,1711561855110,-151.0,0.00054043,120]
[320795701,1711561855120,-151.0,0.00054043,120]
[320795702,1711561855130,-151.0,0.00054043,120]
[320795703,1711561855139,-151.0,0.00054043,120]
[320795704,1711561855149,-204.288628,0.00054043,120]
[320795705,1711561855159,-204.288628,0.00054043,120]
[320795706,1711561855169,-191.520487,0.00054043,120]
[320795707,1711561855179,-151.0,0.00054043,120]
[320795708,1711561855188,-191.520487,0.00054043,120]
[320795709,1711561855198,-250.635261,0.00054043,120]
[320795710,1711561855207,-250.635261,0.00054043,120]
[320795711,1711561855217,-151.576563,0.00054043,120]
[320795712,1711561855227,-240.242065,0.00054043,120]
[320795713,1711561855236,-151.576563,0.00054043,120]
[320795714,1711561855245,-240.242065,0.00054043,120]
[320795715,1711561855255,-151.0,0.00054043,120]
[320795716,1711561855265,-252.288334,0.00054043,120]
[320795717,1711561855275,-342.284432,0.00054043,120]
[320795718,1711561855285,-342.284432,0.00054043,120]
[320795719,1711561855295,-265.755102,0.00054043,120]
[320795720,1711561855305,-302.296389,0.00054043,120]
[320795721,1711561855315,-302.296389,0.00054043,120]
[320795722,1711561855325,-151.0,0.00054043,120]
[320795723,1711561855335,-151.0,0.00054043,120]
[320795724,1711561855345,-151.0,0.00054043,120]
[320795725,1711561855354,-151.0,0.00054043,120]
[320795726,1711561855364,-151.0,0.00054043,120]
[320795727,1711561855374,-249.38377,0.00054043,120]
[320795728,1711561855385,-151.0,0.00054043,120]
[320795729,1711561855396,-151.0,0.00054043,120]
[320795730,1711561855406,-151.0,0.00054043,120]
[320795731,1711561855417,-151.0,0.00054043,120]
[320795732,1711561855440,-151.0,0.00054043,120]
[320795733,1711561855452,-151.0,0.00054043,120]
[320795734,1711561855463,-151.0,0.00054043,120]
[320795735,1711561855473,-151.0,0.00054043,30]
[320795736,1711561855484,-479.754063,0.00054043,120]
[320795737,1711561855494,-151.0,0.00054043,120]
[320795738,1711561855504,-479.754063,0.00054043,120]
[320795739,1711561855515,-151.0,0.00054043,120]
[320795740,1711561855526,-151.0,0.00054043,120]
[320795741,1711561855536,-151.0,0.00054043,120]
[320795742,1711561855547,-151.0,0.00054043,7]
[320795743,1711561855557,-151.0,0.00054043,120]
[320795744,1711561855567,-151.0,0.00054043,120]
[320795745,1711561855578,-151.0,0.00054043,120]
[320795746,1711561855589,-151.0,0.00054043,120]
[320795747,1711561855599,-151.0,0.00054043,14]
[320795748,1711561855611,-151.0,0.00054043,120]
[320795749,1711561855622,-158.036351,0.00054043,120]
[320795750,1711561855633,-158.036351,0.00054043,120]
[320795751,1711561855643,-151.0,0.00054043,120]
[320795752,1711561855654,-300.78474529,0.00054043,2]
[320795753,1711561855666,-1291.2000281,0.00054044,30]
[320795754,1711561855676,-483.35636006,0.00054046,30]
[320795755,1711561855686,-566.94754011,0.0005405,30]
[320795756,1711561855697,-151.0,0.00054052,2]
[320795757,1711561855708,-176.96227464,0.00054052,30]
[320795758,1711561855718,-150.0,0.00054052,14]
[320795759,1711561855729,-566.94754011,0.00054052,30]
[320795760,1711561855739,-427200.45055556,0.00054053,30]
[320795761,1711561855749,-2387.79113854,0.00054053,30]
[320795762,1711561855759,-151.334142,0.00054053,21]
[320795763,1711561855769,-151.499665,0.00054053,3]
[320795764,1711561855779,-151.0,0.00054053,120]
[320795765,1711561855790,-151.0,0.00054053,120]
[320795766,1711561855800,-301.942585,0.00054053,120]
[320795767,1711561855811,-151.0,0.00054053,120]
[320795768,1711561856113,-151.0,0.00054053,60]
[320795769,1711561856130,-2387.79113854,0.00054055,30]
[320795770,1711561856140,-4388.45672278,0.00054055,30]
[320795771,1711561856149,-173.78457562,0.00054056,30]
[320795772,1711561856159,-43211.59343509,0.00054059,30]
[320795773,1711561856170,-4388.45672278,0.00054061,30]
[320795774,1711561856179,-190.67491442,0.00054061,30]
[320795775,1711561856191,-4388.45672278,0.00054061,30]
[320795776,1711561856201,-1326.55063252,0.00054067,30]
[320795777,1711561856212,-72230.34047655,0.00054068,30]
[320795778,1711561856221,-190.67491442,0.00054068,30]
[320795779,1711561856232,-207.0,0.0005407,15]
[320795780,1711561856241,-190.67491442,0.00054073,30]
[320795781,1711561856250,-18485.28708311,0.00054075,30]
[320795782,1711561856260,-2387.79113854,0.00054076,30]
[320795783,1711561856271,-1291.2000281,0.00054076,30]
[320795784,1711561856281,-150.19866873,0.00054078,60]
[320795785,1711561856290,-207.0,0.0005408,15]
[320795786,1711561856300,-173.78457562,0.00054082,30]
[320795787,1711561856313,-150.0,0.00054082,30]
[320795788,1711561856322,-18485.28708311,0.00054083,30]
[320795789,1711561856332,-800.0,0.00054084,30]
[320795790,1711561856343,-500.0,0.00054084,30]
[320795791,1711561856354,-217.85965091,0.00054084,30]
[320795792,1711561856365,-207.0,0.0005409,15]
[320795793,1711561856373,-176.96227464,0.00054093,30]
[320795794,1711561856383,-490.18421455,0.00054094,30]
[320795795,1711561856395,-161.11878669,0.00054095,30]
[320795796,1711561856405,-483.35636006,0.00054096,30]
[320795797,1711561856414,-1326.55063252,0.00054099,30]
[320795798,1711561856424,-533.89,0.000541,7]